fUSD/lending_fUSD_20250206
["ID","MTS","AMOUNT","RATE_DAILY","PERIOD"]
[351884272,1738828312372,-500.0,0.00020187,3]
[351884273,1738828312381,-1098.98,0.00020187,3]
[351884274,1738828312390,-1368.78,0.00020187,3]
[351884275,1738828312400,-500.0,0.00020187,3]
[351884276,1738828312410,-150.0,0.00020187,2]
[351884277,1738828312419,-150.0,0.00020193,2]
[351884278,1738828312429,-150.0,0.00020194,2]
[351884279,1738828312438,-150.0,0.00020199,2]
[351884280,1738828312448,-164.0,0.000202,2]
[351884281,1738828312459,-150.0,0.000202,2]
[351884282,1738828312468,-159.0,0.000202,2]
[351884283,1738828312478,-150.0,0.00020203,2]
[351884284,1738828312487,-150.0,0.00020205,2]
[351884285,1738828312497,-150.0,0.00020207,2]
[351884286,1738828312507,-150.0,0.00020208,2]
[351884287,1738828312516,-150.0,0.0002021,2]
[351884288,1738828312526,-150.0,0.00020212,2]
[351884289,1738828312535,-666.0,0.00020214,2]
[351884290,1738828312545,-500.0,0.00020215,3]
[351884291,1738828312555,-518.44,0.00020215,3]
[351884292,1738828312564,-614.61,0.00020215,3]
[351884293,1738828312574,-500.0,0.00020215,3]
[351884294,1738828312584,-500.0,0.00020215,3]
[351884295,1738828312593,-500.0,0.00020215,3]
[351884296,1738828312603,-500.0,0.00020215,3]
[351884297,1738828312613,-719.46,0.00020215,3]
[351884298,1738828312623,-500.0,0.00020215,3]
[351884299,1738828312633,-591.95,0.00020215,3]
[351884300,1738828312643,-500.0,0.00020215,3]
[351884301,1738828312653,-970.24,0.00020215,3]
[351884302,1738828312664,-553.77,0.00020215,3]
[351884303,1738828312674,-150.03,0.00020215,3]
[351884304,1738828312684,-568.95,0.00020215,3]
[351884305,1738828312701,-880.85,0.00020215,3]
[351884306,1738828312713,-500.0,0.00020215,3]
[351884307,1738828312722,-1237.91,0.00020215,3]
[351884308,1738828312731,-1237.91,0.00020215,3]
[351884309,1738828312742,-972.63,0.00020215,3]
[351884310,1738828312752,-972.63,0.00020215,3]
[351884311,1738828312762,-157.345131,0.00020215,3]
[351884312,1738828312771,-1197.53,0.00020215,3]
[351884313,1738828312781,-1197.53,0.00020215,3]
[351884314,1738828312791,-579.01,0.00020215,3]
[351884315,1738828312801,-579.01,0.00020215,3]
[351884316,1738828312811,-994.07,0.00020215,3]
[351884317,1738828312821,-153.775169,0.00020215,3]
[351884318,1738828312830,-874.42,0.00020215,3]
[351884319,1738828312840,-874.42,0.00020215,3]
[351884320,1738828312850,-1018.23,0.00020215,3]
[351884321,1738828312859,-966.96,0.00020215,3]
[351884322,1738828312869,-1018.23,0.00020215,3]
[351884323,1738828312879,-500.0,0.00020215,3]
[351884324,1738828312887,-802.51,0.00020215,3]
[351884325,1738828312897,-802.51,0.00020215,3]
[351884326,1738828312908,-1133.41,0.00020215,3]
[351884327,1738828312918,-951.4,0.00020215,3]
[351884328,1738828312928,-500.0,0.00020215,3]
[351884329,1738828312938,-500.0,0.00020215,3]
[351884330,1738828312948,-951.4,0.00020215,3]
[351884331,1738828312957,-823.75,0.00020215,3]
[351884332,1738828312966,-745.24,0.00020215,3]
[351884333,1738828312976,-745.24,0.00020215,3]
[351884334,1738828312986,-3020.92,0.00020215,3]
[351884335,1738828312996,-3020.92,0.00020215,3]
[351884336,1738828313005,-945.66,0.00020215,3]
[351884337,1738828313015,-1000.82,0.00020215,3]
[351884338,1738828313025,-1373.06,0.00020215,3]
[351884339,1738828313035,-1000.82,0.00020215,3]
[351884340,1738828313045,-1373.06,0.00020215,3]
[351884341,1738828313056,-500.0,0.00020215,3]
[351884342,1738828313068,-1389.37,0.00020215,3]
[351884343,1738828313078,-500.0,0.00020215,3]
[351884344,1738828313088,-1389.37,0.00020215,3]
[351884345,1738828313098,-1609.52,0.00020215,3]
[351884346,1738828313108,-1609.52,0.00020215,3]
[351884347,1738828313118,-4091.65,0.00020215,3]
[351884348,1738828313128,-1452.35,0.00020215,3]
[351884349,1738828313138,-4082.68,0.00020215,3]
[351884350,1738828313149,-4082.68,0.00020215,3]
[351884351,1738828313159,-1071.43,0.00020215,3]
[351884352,1738828313168,-1468.72,0.00020215,3]
[351884353,1738828313177,-1468.72,0.00020215,3]
[351884354,1738828313187,-3098.34,0.00020215,3]
[351884355,1738828313196,-590.49,0.00020215,3]
[351884356,1738828313206,-3098.34,0.00020215,3]
[351884357,1738828313215,-590.49,0.00020215,3]
[351884358,1738828313225,-914.19,0.00020215,3]
[351884359,1738828313235,-914.19,0.00020215,3]
[351884360,1738828313245,-914.19,0.00020215,3]
[351884361,1738828313255,-1670.31,0.00020215,3]
[351884362,1738828313265,-914.19,0.00020215,3]
[351884363,1738828313274,-914.27359695,0.00020215,3]
[351884364,1738828313283,-1510.77,0.00020215,3]
[351884365,1738828313293,-500.0,0.00020215,3]
[351884366,1738828313302,-1510.77,0.00020215,3]
[351884367,1738828313311,-535.23,0.00020215,3]
[351884368,1738828313320,-897.07,0.00020215,3]
[351884369,1738828313330,-594.41,0.00020215,3]
[351884370,1738828313339,-897.07,0.00020215,3]
[351884371,1738828313348,-897.07,0.00020215,3]
[351884372,1738828313358,-897.07,0.00020215,3]
[351884373,1738828313367,-897.08453595,0.00020215,3]
[351884374,1738828313376,-1242.78,0.00020215,3]
[351884375,1738828313385,-500.0,0.00020215,3]
[351884376,1738828313395,-1242.78,0.00020215,3]
[351884377,1738828313404,-813.79,0.00020215,3]
[351884378,1738828313414,-813.79,0.00020215,3]
[351884379,1738828313423,-1500.26,0.00020215,3]
[351884380,1738828313432,-863.51,0.00020215,3]
[351884381,1738828313442,-863.51,0.00020215,3]
[351884382,1738828313451,-863.51,0.00020215,3]
[351884383,1738828313461,-863.51,0.00020215,3]
[351884384,1738828313471,-863.51690202,0.00020215,3]
[351884385,1738828313484,-1319.57,0.00020215,3]
[351884386,1738828313493,-1319.57,0.00020215,3]
[351884387,1738828313502,-1097.03,0.00020215,3]
[351884388,1738828313512,-897.98,0.00020215,3]
[351884389,1738828313522,-897.98,0.00020215,3]
[351884390,1738828313532,-897.98,0.00020215,3]
[351884391,1738828313542,-897.98,0.00020215,3]
[351884392,1738828313551,-898.10534523,0.00020215,3]
[351884393,1738828313561,-500.0,0.00020215,3]
[351884394,1738828313571,-500.0,0.00020215,3]
[351884395,1738828313580,-524.92,0.00020215,3]
[351884396,1738828313590,-1097.62,0.00020215,3]
[351884397,1738828313599,-1097.62,0.00020215,3]
[351884398,1738828313608,-1244.13,0.00020215,3]
[351884399,1738828313618,-522.29,0.00020215,3]
[351884400,1738828313628,-1283.32,0.00020215,3]
[351884401,1738828313638,-1283.32,0.00020215,3]
[351884402,1738828313647,-681.41,0.00020215,3]
[351884403,1738828313658,-878.58,0.00020215,3]
[351884404,1738828313668,-878.58,0.00020215,3]
[351884405,1738828313678,-878.58,0.00020215,3]
[351884406,1738828313687,-878.58,0.00020215,3]
[351884407,1738828313698,-878.76972173,0.00020215,3]
[351884408,1738828313707,-1176.09,0.00020215,3]
[351884409,1738828313717,-500.0,0.00020215,3]
[351884410,1738828313727,-810.13,0.00020215,3]
[351884411,1738828313736,-810.13,0.00020215,3]
[351884412,1738828313746,-500.0,0.00020215,3]
[351884413,1738828313755,-500.0,0.00020215,3]
[351884414,1738828313765,-641.52,0.00020215,3]
[351884415,1738828313894,-500.0,0.00020215,3]
[351884416,1738828313917,-624.05,0.00020215,3]
[351884417,1738828313926,-500.0,0.00020215,3]
[351884418,1738828313936,-2000.0,0.00020216,2]
[351884419,1738828313947,-1224.9,0.00020216,3]
[351884420,1738828313957,-500.0,0.00020216,3]
[351884421,1738828313967,-518.04,0.00020216,3]
[351884422,1738828313976,-514.35,0.00020216,3]
[351884423,1738828313986,-500.0,0.00020216,3]
[351884424,1738828313995,-500.0,0.00020216,3]
[351884425,1738828314005,-500.0,0.00020216,3]
[351884426,1738828314015,-500.0,0.00020216,3]
[351884427,1738828314024,-779.86,0.00020216,3]
[351884428,1738828314034,-684.11,0.00020216,3]
[351884429,1738828314043,-580.24,0.00020216,3]
[351884430,1738828314053,-500.0,0.00020216,3]
[351884431,1738828314064,-500.0,0.00020216,3]
[351884432,1738828314074,-522.88,0.00020216,3]
[351884433,1738828314084,-500.0,0.00020216,3]
[351884434,1738828314094,-500.0,0.00020216,3]
[351884435,1738828314105,-582.0,0.00020216,3]
[351884436,1738828314115,-625.41,0.00020216,3]
[351884437,1738828314125,-500.0,0.00020216,3]
[351884438,1738828314137,-500.0,0.00020216,3]
[351884439,1738828314148,-592.65,0.00020216,3]
[351884440,1738828314157,-643.53,0.00020216,3]
[351884441,1738828314168,-526.1,0.00020216,3]
[351884442,1738828314178,-683.42,0.00020216,3]
[351884443,1738828314187,-500.0,0.00020216,3]
[351884444,1738828314197,-500.0,0.00020216,3]
[351884445,1738828314206,-743.5,0.00020216,3]
[351884446,1738828314216,-1126.73,0.00020216,3]
[351884447,1738828314227,-911.42,0.00020216,3]
[351884448,1738828314236,-500.0,0.00020216,3]
[351884449,1738828314247,-500.0,0.00020216,3]
[351884450,1738828314257,-500.0,0.00020216,3]
[351884451,1738828314266,-675.43,0.00020216,3]
[351884452,1738828314276,-878.64,0.00020216,3]
[351884453,1738828314285,-876.77,0.00020216,3]
[351884454,1738828314295,-700.57,0.00020216,3]
[351884455,1738828314306,-1237.91,0.00020216,3]
[351884456,1738828314316,-972.63,0.00020216,3]
[351884457,1738828314326,-204.7,0.00020216,3]
[351884458,1738828314336,-500.0,0.00020216,3]
[351884459,1738828314346,-576.4,0.00020216,3]
[351884460,1738828314357,-1197.53,0.00020216,3]
[351884461,1738828314366,-952.02,0.00020216,3]
[351884462,1738828314377,-579.01,0.00020216,3]
[351884463,1738828314386,-552.2,0.00020216,3]
[351884464,1738828314396,-699.15,0.00020216,3]
[351884465,1738828314405,-899.16,0.00020216,3]
[351884466,1738828314415,-874.42,0.00020216,3]
[351884467,1738828314426,-1018.23,0.00020216,3]
[351884468,1738828314435,-802.51,0.00020216,3]
[351884469,1738828314445,-500.0,0.00020216,3]
[351884470,1738828314456,-951.4,0.00020216,3]
[351884471,1738828314466,-500.0,0.00020216,3]
[351884472,1738828314476,-812.31,0.00020216,3]
[351884473,1738828314486,-1035.82,0.00020216,3]
[351884474,1738828314495,-745.24,0.00020216,3]
[351884475,1738828314505,-3020.92,0.00020216,3]
[351884476,1738828314515,-500.0,0.00020216,3]
[351884477,1738828314525,-1000.82,0.00020216,3]
[351884478,1738828314535,-1373.06,0.00020216,3]
[351884479,1738828314546,-1389.37,0.00020216,3]
[351884480,1738828314556,-827.73,0.00020216,3]
[351884481,1738828314565,-1609.52,0.00020216,3]
[351884482,1738828314575,-847.89,0.00020216,3]
[351884483,1738828314585,-755.58,0.00020216,3]
[351884484,1738828314594,-4082.68,0.00020216,3]
[351884485,1738828314604,-529.85,0.00020216,3]
[351884486,1738828314613,-1468.72,0.00020216,3]
[351884487,1738828314623,-3098.34,0.00020216,3]
[351884488,1738828314632,-590.49,0.00020216,3]
[351884489,1738828314642,-562.09,0.00020216,3]
[351884490,1738828314652,-1510.77,0.00020216,3]
[351884491,1738828314662,-747.12,0.00020216,3]
[351884492,1738828314671,-1242.78,0.00020216,3]
[351884493,1738828314681,-1074.46,0.00020216,3]
[351884494,1738828314691,-813.79,0.00020216,3]
[351884495,1738828314701,-876.62,0.00020216,3]
[351884496,1738828314711,-1319.57,0.00020216,3]
[351884497,1738828314720,-500.0,0.00020216,3]
[351884498,1738828314731,-835.17,0.00020216,3]
[351884499,1738828314741,-1097.62,0.00020216,3]
[351884500,1738828314751,-866.19,0.00020216,3]
[351884501,1738828314761,-1143.54,0.00020216,3]
[351884502,1738828314770,-500.0,0.00020216,3]
[351884503,1738828314780,-911.06,0.00020216,3]
[351884504,1738828314790,-914.83,0.00020216,3]
[351884505,1738828314799,-1283.32,0.00020216,3]
[351884506,1738828314809,-828.85,0.00020216,3]
[351884507,1738828314818,-500.0,0.00020216,3]
[351884508,1738828314828,-810.13,0.00020216,3]
[351884509,1738828314838,-791.26,0.00020216,3]
[351884510,1738828314847,-1142.71,0.00020216,3]
[351884511,1738828314856,-1231.34,0.00020216,3]
[351884512,1738828314866,-300.0,0.00020216,2]
[351884513,1738828314875,-666.0,0.00020216,2]
[351884514,1738828314885,-666.0,0.00020216,2]
[351884515,1738828314894,-500.0,0.00020217,3]
[351884516,1738828314903,-531.95,0.00020217,3]
[351884517,1738828314912,-542.48,0.00020217,3]
[351884518,1738828314922,-500.0,0.00020217,3]
[351884519,1738828314932,-513.51,0.00020217,3]
[351884520,1738828314942,-500.0,0.00020217,3]
[351884521,1738828314954,-527.83,0.00020217,3]
[351884522,1738828314963,-500.0,0.00020217,3]
[351884523,1738828314973,-566.87,0.00020217,3]
[351884524,1738828314983,-500.0,0.00020217,3]
[351884525,1738828314993,-685.75,0.00020217,3]
[351884526,1738828315002,-500.0,0.00020217,3]
[351884527,1738828315011,-683.6,0.00020217,3]
[351884528,1738828315021,-500.0,0.00020217,3]
[351884529,1738828315031,-500.0,0.00020217,3]
[351884530,1738828315042,-500.0,0.00020217,3]
[351884531,1738828315052,-532.3,0.00020217,3]
[351884532,1738828315065,-500.0,0.00020217,3]
[351884533,1738828315076,-500.0,0.00020217,3]
[351884534,1738828315086,-779.86,0.00020217,3]
[351884535,1738828315096,-679.33,0.00020217,3]
[351884536,1738828315105,-500.0,0.00020217,3]
[351884537,1738828315117,-684.11,0.00020217,3]
[351884538,1738828315127,-540.0,0.00020217,3]
[351884539,1738828315136,-1448.12,0.00020217,3]
[351884540,1738828315146,-580.24,0.00020217,3]
[351884541,1738828315157,-1159.34,0.00020217,3]
[351884542,1738828315167,-500.0,0.00020217,3]
[351884543,1738828315177,-500.0,0.00020217,3]
[351884544,1738828315186,-500.0,0.00020217,3]
[351884545,1738828315195,-500.0,0.00020217,3]
[351884546,1738828315205,-500.0,0.00020217,3]
[351884547,1738828315215,-500.0,0.00020217,3]
[351884548,1738828315226,-500.0,0.00020217,3]
[351884549,1738828315236,-518.44,0.00020217,3]
[351884550,1738828315246,-635.21,0.00020217,3]
[351884551,1738828315255,-518.44,0.00020217,3]
[351884552,1738828315264,-522.88,0.00020217,3]
[351884553,1738828315274,-509.57,0.00020217,3]
[351884554,1738828315283,-614.61,0.00020217,3]
[351884555,1738828315293,-614.61,0.00020217,3]
[351884556,1738828315302,-500.0,0.00020217,3]
[351884557,1738828315312,-657.45,0.00020217,3]
[351884558,1738828315321,-500.0,0.00020217,3]
[351884559,1738828315330,-582.0,0.00020217,3]
[351884560,1738828315340,-500.0,0.00020217,3]
[351884561,1738828315349,-500.0,0.00020217,3]
[351884562,1738828315358,-884.8,0.00020217,3]
[351884563,1738828315368,-500.0,0.00020217,3]
[351884564,1738828315377,-329.62,0.00020217,3]
[351884565,1738828315387,-500.0,0.00020217,3]
[351884566,1738828315397,-597.73,0.00020217,3]
[351884567,1738828315407,-663.47,0.00020217,3]
[351884568,1738828315417,-300.0,0.00020217,2]
[351884569,1738828315426,-592.07,0.00020217,3]
[351884570,1738828315436,-666.0,0.00020217,2]
[351884571,1738828315446,-500.0,0.00020217,3]
[351884572,1738828315457,-529.1,0.00020217,3]
[351884573,1738828315466,-500.0,0.00020217,3]
[351884574,1738828315476,-500.0,0.00020217,3]
[351884575,1738828315486,-765.56,0.00020217,3]
[351884576,1738828315496,-394.8,0.00020217,3]
[351884577,1738828315506,-592.65,0.00020217,3]
[351884578,1738828315515,-719.46,0.00020217,3]
[351884579,1738828315525,-719.46,0.00020217,3]
[351884580,1738828315535,-151.0,0.00020217,2]
[351884581,1738828315544,-673.85,0.00020217,3]
[351884582,1738828315555,-500.0,0.00020217,3]
[351884583,1738828315565,-643.53,0.00020217,3]
[351884584,1738828315575,-151.0,0.00020217,2]
[351884585,1738828315585,-500.0,0.00020217,3]
[351884586,1738828315595,-683.42,0.00020217,3]
[351884587,1738828315604,-500.0,0.00020217,3]
[351884588,1738828315614,-743.5,0.00020217,3]
[351884589,1738828315623,-500.0,0.00020217,3]
[351884590,1738828315633,-500.0,0.00020217,3]
[351884591,1738828315643,-500.0,0.00020217,3]
[351884592,1738828315653,-591.95,0.00020217,3]
[351884593,1738828315663,-591.95,0.00020217,3]
[351884594,1738828315673,-911.42,0.00020217,3]
[351884595,1738828315682,-500.0,0.00020217,3]
[351884596,1738828315692,-500.0,0.00020217,3]
[351884597,1738828315703,-500.0,0.00020217,3]
[351884598,1738828315713,-541.88,0.00020217,3]
[351884599,1738828315723,-500.0,0.00020217,3]
[351884600,1738828315733,-500.0,0.00020217,3]
[351884601,1738828315743,-211.7,0.00020217,3]
[351884602,1738828315753,-500.0,0.00020217,3]
[351884603,1738828315764,-632.34,0.00020217,3]
[351884604,1738828315774,-970.24,0.00020217,3]
[351884605,1738828315785,-970.24,0.00020217,3]
[351884606,1738828315794,-910.08,0.00020217,3]
[351884607,1738828315804,-675.43,0.00020217,3]
[351884608,1738828315815,-878.64,0.00020217,3]
[351884609,1738828315825,-553.77,0.00020217,3]
[351884610,1738828315835,-553.77,0.00020217,3]
[351884611,1738828315844,-535.37,0.00020217,3]
[351884612,1738828315854,-500.0,0.00020217,3]
[351884613,1738828315863,-568.95,0.00020217,3]
[351884614,1738828315873,-568.95,0.00020217,3]
[351884615,1738828315883,-876.77,0.00020217,3]
[351884616,1738828315892,-500.0,0.00020217,3]
[351884617,1738828315903,-700.57,0.00020217,3]
[351884618,1738828315913,-880.85,0.00020217,3]
[351884619,1738828315923,-880.85,0.00020217,3]
[351884620,1738828315933,-500.0,0.00020217,3]
[351884621,1738828315943,-500.0,0.00020217,3]
[351884622,1738828315953,-915.45,0.00020217,3]
[351884623,1738828315963,-500.0,0.00020217,3]
[351884624,1738828315973,-500.0,0.00020217,3]
[351884625,1738828315983,-585.29,0.00020217,3]
[351884626,1738828315992,-1237.91,0.00020217,3]
[351884627,1738828316002,-972.63,0.00020217,3]
[351884628,1738828316012,-593.78,0.00020217,3]
[351884629,1738828316022,-576.4,0.00020217,3]
[351884630,1738828316032,-157.345131,0.00020217,3]
[351884631,1738828316170,-1197.53,0.00020217,3]
[351884632,1738828316183,-882.26,0.00020217,3]
[351884633,1738828316192,-952.02,0.00020217,3]
[351884634,1738828316201,-1382.3,0.00020217,3]
[351884635,1738828316211,-1211.98,0.00020217,3]
[351884636,1738828316222,-579.01,0.00020217,3]
[351884637,1738828316232,-994.07,0.00020217,3]
[351884638,1738828316241,-994.07,0.00020217,3]
[351884639,1738828316251,-666.0,0.00020217,2]
[351884640,1738828316260,-494.8,0.00020217,3]
[351884641,1738828316270,-699.15,0.00020217,3]
[351884642,1738828316279,-899.16,0.00020217,3]
[351884643,1738828316289,-1461.4,0.00020217,3]
[351884644,1738828316298,-874.42,0.00020217,3]
[351884645,1738828316308,-966.96,0.00020217,3]
[351884646,1738828316319,-966.96,0.00020217,3]
[351884647,1738828316328,-1018.23,0.00020217,3]
[351884648,1738828316338,-1359.27,0.00020217,3]
[351884649,1738828316348,-500.0,0.00020217,3]
[351884650,1738828316357,-500.0,0.00020217,3]
[351884651,1738828316367,-529.22,0.00020217,3]
[351884652,1738828316377,-802.51,0.00020217,3]
[351884653,1738828316387,-500.0,0.00020217,3]
[351884654,1738828316397,-1133.41,0.00020217,3]
[351884655,1738828316407,-1133.41,0.00020217,3]
[351884656,1738828316417,-951.4,0.00020217,3]
[351884657,1738828316426,-500.0,0.00020217,3]
[351884658,1738828316436,-1887.44,0.00020217,3]
[351884659,1738828316446,-436.31,0.00020217,3]
[351884660,1738828316458,-823.75,0.00020217,3]
[351884661,1738828316468,-823.75,0.00020217,3]
[351884662,1738828316478,-812.31,0.00020217,3]
[351884663,1738828316488,-1035.82,0.00020217,3]
[351884664,1738828316499,-745.24,0.00020217,3]
[351884665,1738828316509,-3020.92,0.00020217,3]
[351884666,1738828316519,-500.0,0.00020217,3]
[351884667,1738828316529,-1530.95,0.00020217,3]
[351884668,1738828316538,-945.66,0.00020217,3]
[351884669,1738828316548,-945.66,0.00020217,3]
[351884670,1738828316559,-575.52,0.00020217,3]
[351884671,1738828316568,-1000.82,0.00020217,3]
[351884672,1738828316578,-1373.06,0.00020217,3]
[351884673,1738828316589,-500.0,0.00020217,3]
[351884674,1738828316598,-500.0,0.00020217,3]
[351884675,1738828316608,-500.0,0.00020217,3]
[351884676,1738828316618,-179.6,0.00020217,3]
[351884677,1738828316628,-1389.37,0.00020217,3]
[351884678,1738828316639,-827.73,0.00020217,3]
[351884679,1738828316649,-827.73,0.00020217,3]
[351884680,1738828316659,-827.73,0.00020217,3]
[351884681,1738828316669,-827.73,0.00020217,3]
[351884682,1738828316679,-827.75888845,0.00020217,3]
[351884683,1738828316688,-1609.52,0.00020217,3]
[351884684,1738828316702,-4091.65,0.00020217,3]
[351884685,1738828316712,-4091.65,0.00020217,3]
[351884686,1738828316722,-958.23,0.00020217,3]
[351884687,1738828316732,-1452.35,0.00020217,3]
[351884688,1738828316741,-1452.35,0.00020217,3]
[351884689,1738828316751,-847.89,0.00020217,3]
[351884690,1738828316760,-847.89,0.00020217,3]
[351884691,1738828316770,-847.89,0.00020217,3]
[351884692,1738828316780,-847.89,0.00020217,3]
[351884693,1738828316789,-847.99845899,0.00020217,3]
[351884694,1738828316798,-500.0,0.00020217,3]
[351884695,1738828316808,-500.0,0.00020217,3]
[351884696,1738828316817,-755.58,0.00020217,3]
[351884697,1738828316826,-4082.68,0.00020217,3]
[351884698,1738828316836,-529.85,0.00020217,3]
[351884699,1738828316845,-1071.43,0.00020217,3]
[351884700,1738828316855,-529.85,0.00020217,3]
[351884701,1738828316865,-1071.43,0.00020217,3]
[351884702,1738828316875,-529.85,0.00020217,3]
[351884703,1738828316885,-529.85,0.00020217,3]
[351884704,1738828316895,-530.00567529,0.00020217,3]
[351884705,1738828316906,-1468.72,0.00020217,3]
[351884706,1738828316915,-1231.08,0.00020217,3]
[351884707,1738828316925,-3098.34,0.00020217,3]
[351884708,1738828316934,-590.49,0.00020217,3]
[351884709,1738828316944,-500.0,0.00020217,3]
[351884710,1738828316954,-1407.85,0.00020217,3]
[351884711,1738828316964,-562.09,0.00020217,3]
[351884712,1738828316973,-600.33,0.00020217,3]
[351884713,1738828316983,-1670.31,0.00020217,3]
[351884714,1738828316994,-1670.31,0.00020217,3]
[351884715,1738828317004,-500.0,0.00020217,3]
[351884716,1738828317014,-500.0,0.00020217,3]
[351884717,1738828317023,-1510.77,0.00020217,3]
[351884718,1738828317034,-747.12,0.00020217,3]
[351884719,1738828317044,-747.12,0.00020217,3]
[351884720,1738828317055,-747.12,0.00020217,3]
[351884721,1738828317069,-747.12,0.00020217,3]
[351884722,1738828317078,-747.19458746,0.00020217,3]
[351884723,1738828317089,-500.0,0.00020217,3]
[351884724,1738828317099,-535.23,0.00020217,3]
[351884725,1738828317109,-535.23,0.00020217,3]
[351884726,1738828317120,-594.41,0.00020217,3]
[351884727,1738828317130,-594.41,0.00020217,3]
[351884728,1738828317146,-500.0,0.00020217,3]
[351884729,1738828317156,-1184.3,0.00020217,3]
[351884730,1738828317174,-500.0,0.00020217,3]
[351884731,1738828317192,-500.0,0.00020217,3]
[351884732,1738828317210,-1242.78,0.00020217,3]
[351884733,1738828317232,-1074.46,0.00020217,3]
[351884734,1738828317248,-1074.46,0.00020217,3]
[351884735,1738828317266,-1074.46,0.00020217,3]
[351884736,1738828317285,-1074.46,0.00020217,3]
[351884737,1738828317304,-1074.50263873,0.00020217,3]
[351884738,1738828317325,-512.51,0.00020217,3]
[351884739,1738828317343,-813.79,0.00020217,3]
[351884740,1738828317360,-1500.26,0.00020217,3]
[351884741,1738828317375,-1500.26,0.00020217,3]
[351884742,1738828317395,-1634.32,0.00020217,3]
[351884743,1738828317409,-876.62,0.00020217,3]
[351884744,1738828317428,-876.62,0.00020217,3]
[351884745,1738828317443,-1319.57,0.00020217,3]
[351884746,1738828317459,-1097.03,0.00020217,3]
[351884747,1738828317475,-876.62,0.00020217,3]
[351884748,1738828317491,-1097.03,0.00020217,3]
[351884749,1738828317506,-876.62,0.00020217,3]
[351884750,1738828317521,-876.79,0.00020217,3]
[351884751,1738828317536,-500.0,0.00020217,3]
[351884752,1738828317552,-543.38,0.00020217,3]
[351884753,1738828317566,-524.92,0.00020217,3]
[351884754,1738828317582,-524.92,0.00020217,3]
[351884755,1738828317597,-1638.97,0.00020217,3]
[351884756,1738828317613,-835.17,0.00020217,3]
[351884757,1738828317628,-1097.62,0.00020217,3]
[351884758,1738828317643,-835.17,0.00020217,3]
[351884759,1738828317659,-835.17,0.00020217,3]
[351884760,1738828317675,-835.17,0.00020217,3]
[351884761,1738828317691,-835.2917606,0.00020217,3]
[351884762,1738828317706,-866.19,0.00020217,3]
[351884763,1738828317722,-1143.54,0.00020217,3]
[351884764,1738828317737,-1143.54,0.00020217,3]
[351884765,1738828317752,-1143.54,0.00020217,3]
[351884766,1738828317767,-1143.54,0.00020217,3]
[351884767,1738828317783,-1143.5437875,0.00020217,3]
[351884768,1738828317797,-1244.13,0.00020217,3]
[351884769,1738828317812,-500.0,0.00020217,3]
[351884770,1738828317827,-1244.13,0.00020217,3]
[351884771,1738828317842,-1026.8,0.00020217,3]